bitfinex-derivatives/quotes_SOLF0:USTF0_20250820
["timestamp","ask_amount","ask_price","bid_price","bid_amount"]
[1755697691930,5.565,179.7,179.6,5.5675]
[1755697692231,8.25330268,179.76,179.57,3.04]
[1755697692425,8.01802112,179.75,179.57,3.04]
[1755697692618,8.25330268,179.76,179.57,3.04]
[1755697693022,5.25890507,179.75,179.57,3.04]
[1755697693326,527.6,179.79,179.57,3.04]
[1755697693327,374.22,179.79,179.58,8.25330268]
[1755697693525,5.26171686,179.78,179.59,3.04]
[1755697693830,527.58,179.79,179.59,3.04]
[1755697694433,527.58,179.79,179.64,3.04]
[1755697696033,527.58,179.79,179.71,5.5641]
[1755697696328,527.58,179.79,179.69,3.04]
[1755697696529,527.58,179.79,179.64,3.04]
[1755697696729,5.5622,179.78,179.65,3.04]
[1755697697036,153.3,179.78,179.65,3.04]
[1755697697426,153.3,179.78,179.59,3.04]
[1755697697621,16.27762194,179.77,179.59,3.04]
[1755697697825,1.39158518,179.76,179.62,5.5671]
[1755697698026,1.39153328,179.76,179.59,3.04]
[1755697698324,3.8712354,179.75,179.59,3.04]
[1755697698521,8.25330268,179.77,179.59,3.04]
[1755697698723,5.5654,179.68,179.59,8.608]
[1755697699030,153.3,179.7,179.59,3.04]
[1755697699825,5.5654,179.68,179.6,5.5677]
[1755697700037,153.3,179.7,179.59,3.04]
[1755697700421,153.3,179.7,179.62,5.5671]
[1755697700624,153.3,179.7,179.59,3.04]
[1755697700825,8.25330268,179.78,179.59,3.04]
[1755697701028,153.3,179.77,179.59,3.04]
[1755697701537,5.5629,179.76,179.67,5.5654]
[1755697701733,161.55330268,179.77,179.57,3.04]
[1755697701928,8.03422324,179.76,179.57,3.04]
[1755697702126,5.26868671,179.75,179.57,3.04]
[1755697702335,8.25330268,179.78,179.57,3.04]
[1755697702534,154.02,179.74,179.66,5.5659]
[1755697702828,154.02,179.74,179.62,3.04]
[1755697703229,153.98,179.78,179.62,3.04]
[1755697703627,8.0405681,179.77,179.62,3.04]
[1755697703823,1.3914131,179.76,179.62,3.04]
[1755697704029,1.39132001,179.77,179.62,3.04]
[1755697704228,1.39132001,179.77,179.66,5.5658]
[1755697704429,1.39132001,179.77,179.62,65.04]
[1755697704726,374.22,179.79,179.63,3.04]
[1755697704924,374.22,179.79,179.65,8.25330268]
[1755697705125,154.0,179.81,179.66,3.04]
[1755697705323,8.04373341,179.8,179.66,3.04]
[1755697705529,154.0,179.81,179.62,65.04]
[1755697705530,8.04373341,179.79,179.62,65.04]
[1755697705726,8.04373341,179.78,179.62,3.04]
[1755697705928,5.2740493,179.77,179.62,3.04]
[1755697706126,5.5638,179.73,179.65,5.566]
[1755697706433,162.25330268,179.81,179.62,3.04]
[1755697706635,8.04487115,179.8,179.62,3.04]
[1755697706838,8.04487115,179.79,179.62,3.04]
[1755697707030,162.25330268,179.81,179.62,3.04]
[1755697707232,5.5619,179.8,179.62,3.04]
[1755697707428,154.0,179.81,179.62,3.04]
[1755697707639,8.04384858,179.8,179.62,3.04]
[1755697707838,5.5635,179.74,179.66,5.5657]
[1755697708040,170.7,179.81,179.62,3.04]
[1755697708240,5.5626,179.77,179.68,5.5651]
[1755697708442,153.86,179.8,179.61,2.91]
[1755697708638,5.27539898,179.79,179.61,2.91]
[1755697708843,5.5634,179.75,179.67,5.5656]
[1755697709045,170.56,179.8,179.61,64.91]
[1755697709242,170.56,179.8,179.56,2.91]
[1755697709243,5.5661,179.66,179.56,2.91]
[1755697709442,153.92,179.71,179.56,2.91]
[1755697709744,382.19330268,179.75,179.56,2.91]
[1755697709942,162.10599756,179.74,179.56,2.91]
[1755697710138,154.06,179.74,179.56,2.91]
[1755697710334,154.06,179.74,179.57,8.25330268]
[1755697710544,154.06,179.74,179.58,2.91]
[1755697710743,498.54570799,179.87,179.63,2.91]
[1755697710944,162.16765902,179.86,179.69,2.91]
[1755697711145,8.04765902,179.85,179.69,2.91]
[1755697711349,8.25330268,179.83,179.68,5.5652]
[1755697711546,24.74765902,179.82,179.63,2.91]
[1755697711750,8.25330268,179.79,179.63,2.91]
[1755697711951,162.14765902,179.78,179.63,2.91]
[1755697712156,5.27614192,179.77,179.63,2.91]
[1755697712346,24.95330268,179.84,179.63,2.91]
[1755697712545,154.08,179.79,179.63,2.91]
[1755697712946,154.06,179.83,179.72,5.5638]
[1755697713145,3.88501206,179.82,179.63,2.91]
[1755697713450,5.27474197,179.81,179.63,2.91]
[1755697713647,162.31330268,179.83,179.63,2.91]
[1755697713852,8.04521947,179.82,179.63,2.91]
[1755697714151,8.04521947,179.81,179.63,2.91]
[1755697714348,154.0,179.8,179.63,2.91]
[1755697715143,154.0,179.8,179.71,5.5643]
[1755697715346,154.0,179.8,179.68,2.91]
[1755697718050,153.62,179.83,179.68,2.91]
[1755697718542,153.62,179.83,179.73,5.5636]
[1755697718740,153.62,179.83,179.68,2.91]
[1755697719453,3.8843438,179.82,179.68,2.91]
[1755697719653,153.62,179.83,179.71,5.5643]
[1755697719946,3.88425375,179.82,179.62,8.25330268]
[1755697720157,5.5634,179.75,179.68,5.5651]
[1755697720351,178.57330268,179.83,179.63,2.91]
[1755697720546,8.25330268,179.79,179.63,2.91]
[1755697720854,8.04849106,179.78,179.63,2.91]
[1755697721050,8.25330268,179.79,179.63,2.91]
[1755697721253,5.563,179.76,179.69,5.5649]
[1755697721454,153.28,179.81,179.63,2.91]
[1755697722156,3.89221376,179.8,179.63,2.91]
[1755697722459,153.28,179.81,179.63,2.91]
[1755697722651,5.2878645,179.8,179.63,2.91]
[1755697722855,5.5623,179.78,179.71,5.5642]
[1755697723348,153.28,179.81,179.67,2.91]
[1755697723543,8.07355764,179.8,179.67,2.91]
[1755697723750,153.28,179.81,179.67,2.91]
[1755697723751,8.07332523,179.79,179.67,2.91]
[1755697723947,153.28,179.81,179.67,2.91]
[1755697724147,5.563,179.76,179.69,5.5648]
[1755697724545,153.28,179.81,179.67,2.91]
[1755697724746,503.14726839,179.87,179.72,2.91]
[1755697724950,161.36467555,179.86,179.72,2.91]
[1755697725256,8.08467555,179.85,179.72,2.91]
[1755697725450,8.08467555,179.84,179.72,2.91]
[1755697725757,158.8398,179.86,179.79,5.5617]
[1755697726050,158.8398,179.86,179.67,8.25330268]
[1755697726051,5.29836307,179.85,179.76,2.91]
[1755697726255,158.8399,179.86,179.79,5.5616]
[1755697726456,3.90787769,179.85,179.76,2.91]
[1755697726656,373.94,179.87,179.76,2.91]
[1755697726849,153.26,179.91,179.76,2.91]
[1755697727052,6.69783184,179.9,179.76,2.91]
[1755697727248,3.90965169,179.89,179.76,2.91]
[1755697727452,3.90965169,179.88,179.76,2.91]
[1755697727655,3.90965169,179.87,179.69,2.91]
[1755697727856,3.90965169,179.86,179.69,2.91]
[1755697728053,3.90965169,179.85,179.69,2.91]
[1755697728357,3.90965169,179.84,179.69,2.91]
[1755697728558,3.90965169,179.83,179.69,2.91]
[1755697728950,4.18318574,179.82,179.69,2.91]
[1755697729154,153.26,179.84,179.69,2.91]
[1755697729354,3.914246,179.83,179.69,2.91]
[1755697729556,3.914246,179.82,179.74,2.91]
[1755697729754,153.26,179.84,179.74,2.91]
[1755697729956,3.91526868,179.83,179.74,2.91]
[1755697730162,8.10029805,179.82,179.74,2.91]
[1755697730355,153.26,179.84,179.74,2.91]
[1755697730565,3.91415059,179.83,179.74,2.91]
[1755697730857,5.30479917,179.82,179.74,2.91]
[1755697731049,5.3048193,179.81,179.74,2.91]
[1755697731254,1.39066871,179.81,179.75,5.5631]
[1755697731564,3.91321201,179.8,179.66,2.91]
[1755697731763,8.09740163,179.79,179.66,2.91]
[1755697731961,5.5619,179.8,179.7,2.91]
[1755697732162,153.24,179.87,179.7,2.91]
[1755697732464,8.09533627,179.86,179.7,2.91]
[1755697732757,8.09533627,179.85,179.7,2.91]
[1755697732964,5.5609,179.83,179.75,5.563]
[1755697733355,153.24,179.87,179.75,5.563]
[1755697733562,8.10027164,179.86,179.74,2.91]
[1755697733761,8.10027164,179.85,179.74,2.91]
[1755697733968,8.10027164,179.84,179.74,2.91]
[1755697734157,153.24,179.87,179.74,2.91]
[1755697734158,1.39060221,179.83,179.74,2.91]
[1755697734358,4.18541296,179.86,179.74,2.91]
[1755697734559,5.5606,179.84,179.74,2.91]
[1755697734866,8.10110005,179.83,179.74,2.91]
[1755697735062,153.24,179.87,179.74,2.91]
[1755697735260,8.10255976,179.86,179.68,2.91]
[1755697735566,14.24275726,179.84,179.68,2.91]
[1755697735863,161.30255976,179.83,179.68,2.91]
[1755697736159,161.30255976,179.83,179.71,5.5642]
[1755697736160,5.562,179.79,179.71,5.5642]
[1755697736361,153.2,179.83,179.68,2.91]
[1755697736666,8.10260041,179.82,179.68,2.91]
[1755697736867,8.10260041,179.81,179.68,2.91]
[1755697737167,8.10280807,179.8,179.68,2.91]
[1755697737361,5.3077423,179.79,179.68,2.91]
[1755697737564,12.17211574,179.78,179.62,3.06]
[1755697737761,8.10558123,179.77,179.62,3.06]
[1755697737960,5.5646,179.71,179.62,8.6271]
[1755697738367,5.5646,179.71,179.63,5.5668]
[1755697738966,153.22,179.76,179.62,3.06]
[1755697739167,8.10308165,179.75,179.62,3.06]
[1755697739368,153.22,179.81,179.69,5.5647]
[1755697739566,8.10440115,179.8,179.63,3.06]
[1755697739767,8.10440115,179.79,179.63,3.06]
[1755697739972,5.30972699,179.78,179.63,3.06]
[1755697740166,8.10417638,179.77,179.63,3.06]
[1755697740460,8.25330268,179.83,179.63,3.06]
[1755697740461,3.91851156,179.76,179.63,3.06]
[1755697740667,153.22,179.79,179.63,3.06]
[1755697740869,6.71047214,179.78,179.63,3.06]
[1755697741072,8.10169738,179.77,179.63,3.06]
[1755697741262,8.25330268,179.78,179.59,3.06]
[1755697741263,8.10169738,179.76,179.59,3.06]
[1755697741463,8.25330268,179.74,179.59,3.06]
[1755697741662,8.10169738,179.73,179.59,3.06]
[1755697741866,5.30800633,179.72,179.59,3.06]
[1755697742063,153.22,179.77,179.59,3.06]
[1755697742260,8.09992411,179.76,179.59,3.06]
[1755697742461,5.30720468,179.75,179.67,5.5655]
[1755697742659,153.22,179.77,179.67,5.5655]
[1755697742857,5.30638118,179.76,179.65,3.06]
[1755697743071,153.22,179.77,179.65,3.06]
[1755697743264,373.86,179.8,179.65,3.06]
[1755697743572,373.86,179.8,179.71,5.5643]
[1755697743870,373.86,179.8,179.69,3.06]
[1755697744068,373.86,179.8,179.7,5.5644]
[1755697744361,373.86,179.8,179.69,3.06]
[1755697744570,5.98945458,179.87,179.75,5.5629]
[1755697744766,5.98945458,179.87,179.69,3.06]
[1755697744767,8.10419558,179.86,179.67,3.06]
[1755697744963,5.30941188,179.85,179.67,3.06]
[1755697745269,5.5597,179.87,179.67,3.06]
[1755697745470,8.10482308,179.86,179.67,3.06]
[1755697745668,5.5609,179.83,179.72,3.06]
[1755697745866,153.22,179.89,179.72,3.06]
[1755697746060,8.10428274,179.88,179.72,3.06]
[1755697746266,8.10428274,179.87,179.72,3.06]
[1755697746464,8.10428274,179.86,179.72,3.06]
[1755697746770,153.22,179.89,179.72,3.06]
[1755697746771,8.10428274,179.85,179.72,3.06]
[1755697746958,5.5615,179.81,179.73,5.5637]
[1755697747162,153.22,179.89,179.72,3.06]
[1755697747369,8.10394501,179.88,179.72,3.06]
[1755697747567,153.22,179.89,179.73,5.5637]
[1755697747568,8.10394501,179.87,179.73,5.5637]
[1755697747769,8.10394501,179.86,179.73,5.5637]
[1755697747965,8.10394501,179.85,179.73,5.5637]
[1755697748166,5.5615,179.81,179.73,5.5637]
[1755697748368,5.5615,179.81,179.72,3.06]
[1755697748369,8.25330268,179.85,179.67,3.06]
[1755697748667,161.29958702,179.84,179.67,3.06]
[1755697748974,8.25330268,179.8,179.6,3.06]
[1755697749172,8.09958702,179.79,179.6,3.06]
[1755697749470,8.09958702,179.78,179.6,3.06]
[1755697749673,8.09958702,179.77,179.6,3.06]
[1755697749868,158.50740835,179.76,179.64,5.5665]
[1755697750067,153.2,179.76,179.6,3.06]
[1755697750270,161.45330268,179.76,179.6,3.06]
[1755697750469,8.09754957,179.75,179.6,3.06]
[1755697750671,161.45330268,179.76,179.6,3.06]
[1755697750672,8.09754957,179.74,179.6,3.06]
[1755697750872,5.3065917,179.73,179.6,3.06]
[1755697751167,3.91438282,179.72,179.6,3.06]
[1755697751366,161.45330268,179.76,179.6,3.06]
[1755697751568,8.09497835,179.75,179.6,3.06]
[1755697751769,161.45330268,179.76,179.55,373.84]
[1755697751770,8.09497835,179.74,179.55,373.84]
[1755697752070,8.09497835,179.73,179.55,373.84]
[1755697752272,16.34828103,179.72,179.54,3.06]
[1755697752473,5.565,179.69,179.62,5.567]
[1755697752667,153.2,179.72,179.6,3.06]
[1755697752867,3.94784815,179.71,179.6,3.06]
[1755697753178,5.5649,179.7,179.62,5.5671]
[1755697753467,393.96758188,179.8,179.6,3.06]
[1755697753468,373.86,179.8,179.6,3.06]
[1755697753671,161.3293174,179.79,179.6,3.06]
[1755697753868,8.12904997,179.78,179.6,3.06]
[1755697754068,8.12904997,179.77,179.6,3.06]
[1755697754276,8.1291001,179.76,179.56,3.06]
[1755697754569,153.2,179.79,179.61,3.06]
[1755697754770,153.22,179.85,179.66,3.06]
[1755697755374,153.22,179.85,179.66,9.18317111]
[1755697755674,153.22,179.85,179.67,3.06]
[1755697755877,153.22,179.85,179.77,5.5622]
[1755697756271,158.7802,179.85,179.76,8.6226]
[1755697756470,153.22,179.85,179.71,3.06]
[1755697756667,5.34519467,179.84,179.71,3.06]
[1755697756868,5.5609,179.83,179.74,5.5634]
[1755697757075,5.98945458,179.91,179.75,3.06]
[1755697757378,120.10914424,179.93,179.77,3.06]
[1755697757580,379.86945458,180.02,179.77,162.36317111]
[1755697757581,153.18,180.01,179.77,162.36317111]
[1755697757773,5.34426144,180.0,179.82,3.06]
[1755697758079,8.25330268,180.03,179.82,3.06]
[1755697758080,8.25330268,180.07,179.82,3.06]
[1755697758378,3.95624452,180.06,179.97,5.5563]
[1755697758576,153.18,180.09,179.97,3.06]
[1755697758879,158.7327,180.09,179.98,5.5559]
[1755697759074,124.36650027,180.11,179.97,3.06]
[1755697759673,3.93964552,180.1,179.97,3.06]
[1755697759875,373.88,180.12,179.97,3.06]
[1755697760081,24.95330268,180.24,179.97,3.06]
[1755697760278,24.95330268,180.24,179.88,153.1]
[1755697760279,161.21450241,180.23,180.02,3.06]
[1755697760467,1.38801415,180.22,180.01,8.25330268]
[1755697760673,153.1,180.23,180.06,3.06]
[1755697760873,3.93032051,180.22,180.06,3.06]
[1755697761380,374.64602265,180.28,180.06,3.06]
[1755697761570,8.25330268,180.24,180.06,3.06]
[1755697761773,8.25330268,180.19,180.01,3.06]
[1755697761968,153.1,180.18,180.01,3.06]
[1755697762270,153.1,180.18,180.03,3.06]
[1755697762475,161.35330268,180.25,180.03,3.06]
[1755697762774,8.25330268,180.2,180.03,3.06]
[1755697762974,3.91109695,180.19,180.03,3.06]
[1755697763171,3.91109695,180.18,180.03,3.06]
[1755697763375,8.25330268,180.16,179.98,3.06]
[1755697763676,156.92449603,180.15,179.98,3.06]
[1755697763873,8.25330268,180.12,179.98,3.06]
[1755697764074,8.25330268,180.12,179.91,238.74931958]
[1755697764075,5.5542,180.04,179.91,5.558]
[1755697764280,8.25330268,180.12,179.93,3.06]
[1755697764575,5.5543,180.04,179.93,3.06]
[1755697764776,8.25330268,180.12,179.93,3.06]
[1755697765173,8.25330268,180.12,179.93,8.6176]
[1755697765375,3.9011401,180.11,179.93,3.06]
[1755697765572,8.25330268,180.12,179.93,3.06]
[1755697766976,8.25330268,180.08,179.93,3.06]
[1755697767179,8.25330268,180.08,179.89,373.48]
[1755697767180,152.98,180.07,179.89,376.34]
[1755697767979,152.98,180.07,179.83,152.98]
[1755697767980,8.25330268,180.04,179.85,2.86]
[1755697768982,152.98,180.07,179.9,2.86]
[1755697769586,5.5546,180.03,179.9,2.86]
[1755697769885,152.98,180.07,179.9,2.86]
[1755697770183,152.98,180.07,179.84,62.0]
[1755697770184,152.98,180.07,179.88,2.86]
[1755697770479,120.6770411,180.12,179.98,5.5558]
[1755697770678,120.6770411,180.12,179.99,2.86]
[1755697772788,5.5524,180.1,179.99,8.4155]
[1755697773181,120.6770411,180.12,179.99,2.86]
[1755697773382,128.93034378,180.12,179.99,2.86]
[1755697773588,128.93034378,180.12,179.93,2.86]
[1755697773783,8.25330268,180.08,179.93,2.86]
[1755697773983,0.96678752,180.12,179.94,2.86]
[1755697774187,152.96,180.14,179.94,2.86]
[1755697774886,152.96,180.14,179.94,8.417]
[1755697775082,152.96,180.14,179.94,2.86]
[1755697775382,8.25330268,180.09,179.94,2.86]
[1755697775781,16.7,180.08,179.88,2.86]
[1755697776175,24.95330268,180.09,179.88,2.86]
[1755697776580,8.25330268,180.09,179.88,2.86]
[1755697776982,8.25330268,180.09,179.94,5.557]
[1755697777188,8.25330268,180.09,179.93,2.86]
[1755697777888,24.95330268,180.09,179.88,2.86]
[1755697778089,8.25330268,180.04,179.88,2.86]
[1755697778291,152.94,180.03,179.88,2.86]
[1755697778984,169.64,180.03,179.88,2.86]
[1755697779694,152.94,180.03,179.88,2.86]
[1755697780078,152.94,180.03,179.89,5.5588]
[1755697780389,152.94,180.03,179.88,2.86]
[1755697780785,8.25330268,179.99,179.83,2.86]
[1755697781183,152.96,180.0,179.83,2.86]
[1755697781685,5.5565,179.97,179.89,5.5586]
[1755697781885,5.5565,179.97,179.83,2.86]
[1755697781886,152.96,180.0,179.87,2.86]
[1755697782590,8.25330268,179.99,179.82,2.86]
[1755697783785,8.25330268,179.99,179.85,5.56]
[1755697784093,8.25330268,179.99,179.82,2.86]
[1755697784487,161.21330268,180.0,179.82,2.86]
[1755697784889,3.88952799,179.99,179.82,2.86]
[1755697785090,161.21330268,180.0,179.82,2.86]
[1755697785688,161.21330268,180.0,179.87,5.5592]
[1755697785888,161.21330268,180.0,179.86,2.86]
[1755697786687,152.96,180.0,179.86,2.86]
[1755697786895,5.5558,179.99,179.86,2.86]
[1755697787092,152.96,180.0,179.86,2.86]
[1755697787392,152.98,180.06,179.96,5.5565]
[1755697787593,152.98,180.06,179.95,2.86]
[1755697790003,152.98,180.06,179.96,5.5564]
[1755697790197,152.98,180.06,179.95,2.86]
[1755697790893,5.555,180.02,179.95,2.86]
[1755697791094,152.98,180.06,179.95,2.86]
[1755697791493,12.15593292,180.05,179.89,64.86]
[1755697791795,8.25330268,180.0,179.84,2.86]
[1755697791992,3.90146004,179.99,179.76,237.03683822]
[1755697792200,8.25330268,179.95,179.77,2.86]
[1755697792588,5.5591,179.89,179.77,2.86]
[1755697792794,8.25330268,179.95,179.77,2.86]
[1755697793699,154.26,179.98,179.77,2.86]
[1755697793894,3.90288979,179.97,179.77,2.86]
[1755697794197,3.90288979,179.97,179.76,245.2901409]
[1755697794198,154.26,179.98,179.82,2.86]
[1755697794398,3.90281252,179.97,179.82,2.86]
[1755697794602,3.90593577,179.96,179.82,2.86]
[1755697794805,154.26,179.98,179.82,2.86]
[1755697795000,3.90610637,179.97,179.82,2.86]
[1755697795205,5.5583,179.91,179.83,5.5606]
[1755697795396,8.25330268,179.95,179.76,2.86]
[1755697795592,8.05184482,179.94,179.76,2.86]
[1755697795907,8.25330268,179.9,179.76,2.86]
[1755697796205,157.80976156,179.89,179.76,2.86]
[1755697796396,3.9124812,179.88,179.76,2.86]
[1755697796597,153.9,179.89,179.76,2.86]
[1755697796797,3.91247707,179.88,179.76,2.86]
[1755697797100,153.9,179.89,179.76,2.86]
[1755697797303,6.67044966,179.88,179.76,2.86]
[1755697797506,3.91775132,179.87,179.76,2.86]
[1755697797703,3.91772833,179.86,179.76,2.86]
[1755697798001,153.9,179.89,179.76,2.86]
[1755697798303,8.06579159,179.88,179.71,376.41]
[1755697798599,153.9,179.89,179.71,376.41]
[1755697798600,8.06579159,179.87,179.71,3.01]
[1755697798904,16.31909427,179.86,179.71,3.01]
[1755697799092,8.06579159,179.85,179.71,3.01]
[1755697799296,8.06579159,179.84,179.71,3.01]
[1755697799492,8.06579159,179.83,179.67,3.01]
[1755697799695,8.06621617,179.82,179.67,3.01]
[1755697799897,14.24275726,179.86,179.67,3.01]
[1755697799898,3.91756704,179.81,179.67,3.01]
[1755697800197,3.91756704,179.8,179.67,3.01]
[1755697800407,8.25330268,179.77,179.61,3.01]
[1755697800599,8.06976615,179.76,179.61,3.01]
[1755697800793,8.06976615,179.75,179.62,5.5671]
[1755697800998,8.06976615,179.74,179.61,3.01]
[1755697801202,8.25330268,179.77,179.61,3.01]
[1755697801203,6.67867377,179.73,179.61,3.01]
[1755697801405,8.25330268,179.77,179.61,3.01]
[1755697801607,6.67794809,179.76,179.61,3.01]
[1755697801800,6.67794809,179.75,179.61,8.5772]
[1755697802001,161.77330268,179.77,179.61,3.01]
[1755697802002,8.06901248,179.74,179.61,3.01]
[1755697802201,3.91949774,179.73,179.61,3.01]
[1755697802507,5.5643,179.72,179.64,5.5665]
[1755697802706,153.46,179.75,179.61,3.01]
[1755697803300,159.0232,179.75,179.66,5.5657]
[1755697803804,5.5639,179.73,179.64,5.5663]
[1755697804105,153.32,179.81,179.61,3.01]
[1755697804311,3.91022048,179.8,179.61,3.01]
[1755697804608,8.25330268,179.78,179.58,3.01]
[1755697804906,8.25330268,179.73,179.58,3.01]
[1755697805502,8.25330268,179.73,179.59,5.568]
[1755697805700,8.25330268,179.73,179.58,3.01]
[1755697806107,3.90373219,179.72,179.58,3.01]
[1755697806412,157.69957055,179.71,179.58,3.01]
[1755697806604,153.8,179.71,179.58,3.01]
[1755697807302,373.78,179.73,179.58,3.01]
[1755697809411,8.25330268,179.67,179.53,3.01]
[1755697809605,153.68,179.66,179.53,3.01]
[1755697810008,8.25330268,179.65,179.48,3.01]
[1755697810312,8.25330268,179.64,179.48,3.01]
[1755697810511,153.68,179.66,179.48,3.01]
[1755697811307,153.68,179.66,179.53,3.01]
[1755697811806,373.78,179.73,179.53,3.01]
[1755697812015,153.78,179.7,179.53,3.01]
[1755697812410,153.78,179.7,179.55,3.01]
[1755697813015,162.03330268,179.7,179.55,3.01]
[1755697813214,8.25330268,179.68,179.5,3.01]
[1755697813409,8.25330268,179.64,179.5,3.01]
[1755697813715,8.25330268,179.64,179.45,3.01]
[1755697813904,3.88228271,179.63,179.39,377.01]
[1755697814110,11.1306,179.69,179.42,0.96941334]
[1755697814111,8.25330268,179.57,179.42,0.96941334]
[1755697814409,8.25330268,179.52,179.34,3.01]
[1755697814814,528.92,179.56,179.34,9.55574561]
[1755697815113,528.92,179.56,179.35,3.01]
[1755697815114,3.87360033,179.55,179.35,3.01]
[1755697815308,374.0,179.56,179.35,3.01]
[1755697815503,163.45330268,179.55,179.35,3.01]
[1755697815703,155.2,179.55,179.35,3.01]
[1755697815911,155.2,179.55,179.37,3.01]
[1755697816314,8.25330268,179.54,179.37,3.01]
[1755697817208,155.2,179.55,179.37,3.01]
[1755697817405,374.0,179.56,179.37,3.01]
[1755697818814,382.25330268,179.56,179.37,3.01]
[1755697819314,374.0,179.56,179.37,3.01]
[1755697819614,8.25330268,179.5,179.37,3.01]
[1755697819811,8.25330268,179.45,179.31,3.01]
[1755697820111,156.02,179.44,179.31,3.01]
[1755697821010,5.5766,179.32,179.27,0.97034589]
[1755697821316,156.22,179.36,179.25,3.01]
[1755697821510,8.25330268,179.41,179.29,5.5773]
[1755697821511,5.574,179.4,179.29,5.5773]
[1755697821708,5.574,179.4,179.25,3.01]
[1755697821709,156.26,179.41,179.25,3.01]
[1755697822110,374.2,179.43,179.25,3.01]
[1755697822311,164.51330268,179.42,179.25,3.01]
[1755697822616,165.48390568,179.42,179.25,3.01]
[1755697822802,164.75330268,179.41,179.25,3.01]
[1755697823612,164.75330268,179.41,179.25,8.5885]
[1755697823920,374.2,179.43,179.25,3.01]
[1755697824722,156.48,179.42,179.26,3.01]
[1755697824919,374.2,179.43,179.26,3.01]
[1755697825120,374.2,179.43,179.22,0.97049473]
[1755697825121,374.2,179.43,179.3,3.01]
[1755697825616,156.94,179.49,179.35,2.92]
[1755697825821,374.46,179.53,179.35,2.92]
[1755697826013,374.46,179.53,179.37,8.25330268]
[1755697826210,374.46,179.53,179.38,2.92]
[1755697826918,374.46,179.53,179.33,2.92]
[1755697827225,374.46,179.53,179.28,2.92]
[1755697827226,8.25330268,179.5,179.28,2.92]
[1755697827915,157.4,179.49,179.35,2.92]
[1755697828216,5.5724,179.46,179.36,5.575]
[1755697828426,157.4,179.49,179.35,2.92]
[1755697829124,157.36,179.51,179.37,2.92]
[1755697829317,157.42,179.52,179.37,2.92]
[1755697829718,5.5713,179.49,179.4,5.574]
[1755697830023,157.42,179.52,179.37,2.92]
[1755697830423,374.46,179.53,179.37,2.92]
[1755697830612,121.45709037,179.57,179.42,2.92]
[1755697831626,157.9,179.63,179.45,2.92]
[1755697831926,158.06,179.7,179.56,2.92]
[1755697832120,158.02,179.69,179.56,2.92]
[1755697832421,5.5662,179.65,179.56,2.92]
[1755697832616,158.02,179.69,179.56,2.92]
[1755697833327,374.46,179.75,179.56,2.92]
[1755697833521,5.5634,179.74,179.56,2.92]
[1755697833824,532.58,179.75,179.58,2.92]
[1755697834419,158.84,179.74,179.58,2.92]
[1755697835516,159.80886006,179.74,179.53,11.17330268]